[Event "*** Titled Tuesday Blitz"]
[Site "Chess.com"]
[Date "2020.10.20"]
[Round "10"]
[White "1977Ivan"]
[Black "Ranindu2003"]
[Result "1/2-1/2"]
[WhiteElo "2683"]
[BlackElo "2557"]
[TimeControl "180+1"]
[EndTime "11:59:33 PDT"]
[Termination "Game drawn by stalemate"]

1. c4 {[%clk 0:03:00.9]} 1... e6 {[%clk 0:02:59.7]} 2. Nc3 {[%clk 0:03:00.9]}
2... d5 {[%clk 0:02:59.7]} 3. d4 {[%clk 0:03:01.4]} 3... a6 {[%clk 0:02:59.9]}
4. cxd5 {[%clk 0:02:59.8]} 4... exd5 {[%clk 0:03:00.8]} 5. Nf3 {[%clk
0:03:00.7]} 5... Nf6 {[%clk 0:03:00.4]} 6. Bg5 {[%clk 0:02:59.3]} 6... Be6
{[%clk 0:03:00.6]} 7. e3 {[%clk 0:02:58.6]} 7... Nbd7 {[%clk 0:03:01]} 8. Bd3
{[%clk 0:02:56.8]} 8... h6 {[%clk 0:03:01.2]} 9. Bf4 {[%clk 0:02:54.8]} 9... g5
{[%clk 0:03:01.6]} 10. Bg3 {[%clk 0:02:52.8]} 10... Nh5 {[%clk 0:03:01.8]} 11.
Qc2 {[%clk 0:02:47.7]} 11... Bg7 {[%clk 0:02:53.8]} 12. O-O {[%clk 0:02:41.3]}
12... Nxg3 {[%clk 0:02:51.4]} 13. fxg3 {[%clk 0:02:40.7]} 13... O-O {[%clk
0:02:48.3]} 14. e4 {[%clk 0:02:30.4]} 14... dxe4 {[%clk 0:02:46.7]} 15. Bxe4
{[%clk 0:02:31.3]} 15... Nb6 {[%clk 0:02:29.9]} 16. Rad1 {[%clk 0:02:28.9]}
16... c6 {[%clk 0:02:26.2]} 17. Bh7+ {[%clk 0:02:24.8]} 17... Kh8 {[%clk
0:02:24]} 18. Bf5 {[%clk 0:02:25.7]} 18... Nd5 {[%clk 0:02:07.8]} 19. Rfe1
{[%clk 0:02:01.5]} 19... Nxc3 {[%clk 0:01:59]} 20. bxc3 {[%clk 0:02:00.6]} 20...
Bxf5 {[%clk 0:01:57.6]} 21. Qxf5 {[%clk 0:02:00.2]} 21... Qd5 {[%clk 0:01:58.1]}
22. Ne5 {[%clk 0:01:55.5]} 22... b5 {[%clk 0:01:41.7]} 23. Rf1 {[%clk
0:01:50.7]} 23... Kg8 {[%clk 0:01:39]} 24. Rd2 {[%clk 0:01:32.9]} 24... Bxe5
{[%clk 0:01:26.8]} 25. Qxe5 {[%clk 0:01:32.1]} 25... Qxe5 {[%clk 0:01:26.8]} 26.
dxe5 {[%clk 0:01:33]} 26... Rad8 {[%clk 0:01:22.3]} 27. Rfd1 {[%clk 0:01:31]}
27... Rxd2 {[%clk 0:01:15.4]} 28. Rxd2 {[%clk 0:01:31.9]} 28... Re8 {[%clk
0:01:16]} 29. Rd6 {[%clk 0:01:31.3]} 29... Rxe5 {[%clk 0:01:08.4]} 30. Rxc6
{[%clk 0:01:30.5]} 30... a5 {[%clk 0:01:08.8]} 31. Kf2 {[%clk 0:01:26]} 31... a4
{[%clk 0:01:05.9]} 32. g4 {[%clk 0:01:19.3]} 32... Re4 {[%clk 0:00:51.9]} 33. h3
{[%clk 0:01:11.3]} 33... Kg7 {[%clk 0:00:38.3]} 34. Kf3 {[%clk 0:01:11.3]} 34...
Re1 {[%clk 0:00:36.7]} 35. Rb6 {[%clk 0:01:07.8]} 35... Rc1 {[%clk 0:00:32.9]}
36. Rc6 {[%clk 0:00:38.4]} 36... b4 {[%clk 0:00:25]} 37. c4 {[%clk 0:00:38.2]}
37... Rc2 {[%clk 0:00:25.4]} 38. Rb6 {[%clk 0:00:33.1]} 38... Rxc4 {[%clk
0:00:23.1]} 39. Ke3 {[%clk 0:00:31.7]} 39... Rc3+ {[%clk 0:00:20.1]} 40. Ke4
{[%clk 0:00:31.2]} 40... Rc2 {[%clk 0:00:18.5]} 41. Rxb4 {[%clk 0:00:30.3]}
41... Rxa2 {[%clk 0:00:18.7]} 42. g3 {[%clk 0:00:29.8]} 42... Ra3 {[%clk
0:00:18.9]} 43. h4 {[%clk 0:00:29.6]} 43... Rxg3 {[%clk 0:00:18.7]} 44. Kf5
{[%clk 0:00:27.4]} 44... Rf3+ {[%clk 0:00:18.9]} 45. Ke5 {[%clk 0:00:27.5]}
45... gxh4 {[%clk 0:00:12.6]} 46. Rxa4 {[%clk 0:00:26.7]} 46... Rg3 {[%clk
0:00:12.9]} 47. Kf4 {[%clk 0:00:25.6]} 47... Rg1 {[%clk 0:00:11.8]} 48. Ra5
{[%clk 0:00:21]} 48... Rf1+ {[%clk 0:00:11.6]} 49. Ke3 {[%clk 0:00:21.2]} 49...
Rg1 {[%clk 0:00:05.3]} 50. Kf3 {[%clk 0:00:19.6]} 50... Rf1+ {[%clk 0:00:05.2]}
51. Ke3 {[%clk 0:00:19.7]} 51... f5 {[%clk 0:00:04.6]} 52. Rxf5 {[%clk
0:00:18.6]} 52... Rxf5 {[%clk 0:00:04.6]} 53. gxf5 {[%clk 0:00:19.5]} 53... Kf6
{[%clk 0:00:05.2]} 54. Kf3 {[%clk 0:00:19.6]} 54... Kxf5 {[%clk 0:00:05.8]} 55.
Kg2 {[%clk 0:00:20.5]} 55... Kg4 {[%clk 0:00:06]} 56. Kh2 {[%clk 0:00:21.4]}
56... h3 {[%clk 0:00:06]} 57. Kh1 {[%clk 0:00:20.8]} 57... Kh4 {[%clk
0:00:06.4]} 58. Kh2 {[%clk 0:00:20]} 58... h5 {[%clk 0:00:06.8]} 59. Kh1 {[%clk
0:00:20.9]} 59... Kg3 {[%clk 0:00:07.3]} 60. Kg1 {[%clk 0:00:20.6]} 60... Kf3
{[%clk 0:00:07.7]} 61. Kh1 {[%clk 0:00:21.5]} 61... Kf4 {[%clk 0:00:07.5]} 62.
Kg1 {[%clk 0:00:22.4]} 62... Kg4 {[%clk 0:00:07.8]} 63. Kh1 {[%clk 0:00:23.3]}
63... Kf3 {[%clk 0:00:08.3]} 64. Kh2 {[%clk 0:00:24.2]} 64... Kg4 {[%clk
0:00:08.5]} 65. Kh1 {[%clk 0:00:25.1]} 65... Kg3 {[%clk 0:00:07.8]} 66. Kg1
{[%clk 0:00:26]} 66... Kf3 {[%clk 0:00:08.7]} 67. Kh1 {[%clk 0:00:26.9]} 67...
h4 {[%clk 0:00:08.2]} 68. Kh2 {[%clk 0:00:27.8]} 68... Kg4 {[%clk 0:00:08.4]}
69. Kh1 {[%clk 0:00:28.7]} 69... Kg3 {[%clk 0:00:08.2]} 70. Kg1 {[%clk
0:00:29.6]} 70... h2+ {[%clk 0:00:05.2]} 71. Kh1 {[%clk 0:00:30.5]} 71... h3
{[%clk 0:00:06.1]} 1/2-1/2

[Event "*** Titled Tuesday Blitz"]
[Site "Chess.com"]
[Date "2020.10.20"]
[Round "10"]
[White "frederiksvane"]
[Black "Shuvalov"]
[Result "1-0"]
[WhiteElo "2651"]
[BlackElo "2478"]
[TimeControl "180+1"]
[EndTime "11:59:34 PDT"]
[Termination "frederiksvane won by resignation"]

1. e4 {[%clk 0:03:00.9]} 1... e6 {[%clk 0:02:55.9]} 2. d4 {[%clk 0:03:00.8]}
2... d5 {[%clk 0:02:55.8]} 3. Nd2 {[%clk 0:03:01.1]} 3... c5 {[%clk 0:02:55.1]}
4. exd5 {[%clk 0:03:00.4]} 4... exd5 {[%clk 0:02:56]} 5. Ngf3 {[%clk 0:03:01.1]}
5... Nc6 {[%clk 0:02:55.9]} 6. Bb5 {[%clk 0:02:58.9]} 6... Bd6 {[%clk
0:02:52.3]} 7. dxc5 {[%clk 0:02:57.7]} 7... Bxc5 {[%clk 0:02:53.2]} 8. Nb3
{[%clk 0:02:56.3]} 8... Bb6 {[%clk 0:02:50.8]} 9. O-O {[%clk 0:02:56.3]} 9...
Ne7 {[%clk 0:02:51]} 10. Re1 {[%clk 0:02:56.3]} 10... O-O {[%clk 0:02:51]} 11.
Be3 {[%clk 0:02:57.2]} 11... Bg4 {[%clk 0:02:46.9]} 12. c3 {[%clk 0:02:44.9]}
12... Ne5 {[%clk 0:02:24.5]} 13. Bxb6 {[%clk 0:02:39]} 13... Nxf3+ {[%clk
0:02:11.8]} 14. gxf3 {[%clk 0:02:38.9]} 14... Qxb6 {[%clk 0:02:03.4]} 15. fxg4
{[%clk 0:02:32.9]} 15... Ng6 {[%clk 0:01:59.4]} 16. Bf1 {[%clk 0:02:31.9]} 16...
a5 {[%clk 0:01:56.9]} 17. Qd4 {[%clk 0:02:23.2]} 17... Qc7 {[%clk 0:01:52.3]}
18. Bg2 {[%clk 0:02:08]} 18... a4 {[%clk 0:01:50.2]} 19. Nc5 {[%clk 0:02:07.5]}
19... Rac8 {[%clk 0:01:41.5]} 20. Nd3 {[%clk 0:01:53.4]} 20... a3 {[%clk
0:01:39.9]} 21. bxa3 {[%clk 0:01:54.3]} 21... Qxc3 {[%clk 0:01:27]} 22. Qxc3
{[%clk 0:01:55.2]} 22... Rxc3 {[%clk 0:01:27.4]} 23. Nb4 {[%clk 0:01:53.5]}
23... d4 {[%clk 0:01:23.9]} 24. Nd5 {[%clk 0:01:49.3]} 24... Rxa3 {[%clk
0:01:22.2]} 25. Ne7+ {[%clk 0:01:49.2]} 25... Kh8 {[%clk 0:01:17]} 26. Nxg6+
{[%clk 0:01:47.5]} 26... fxg6 {[%clk 0:01:17.9]} 27. Bxb7 {[%clk 0:01:44.5]}
27... h6 {[%clk 0:01:16.1]} 28. Bg2 {[%clk 0:01:42.6]} 28... g5 {[%clk
0:01:13.1]} 29. h3 {[%clk 0:01:34.3]} 29... g6 {[%clk 0:01:08.8]} 30. Re7 {[%clk
0:01:28.5]} 30... Rd8 {[%clk 0:01:07]} 31. Rc1 {[%clk 0:01:11.2]} 31... d3
{[%clk 0:00:52.4]} 32. Rcc7 {[%clk 0:01:06.8]} 32... d2 {[%clk 0:00:49.2]} 33.
Rh7+ {[%clk 0:01:01]} 33... Kg8 {[%clk 0:00:49.1]} 34. Rcg7+ {[%clk 0:01:00.4]}
34... Kf8 {[%clk 0:00:48.9]} 35. Rf7+ {[%clk 0:00:57.3]} 35... Kg8 {[%clk
0:00:47.6]} 36. Rfg7+ {[%clk 0:00:51]} 36... Kf8 {[%clk 0:00:47.6]} 37. Rh8+
{[%clk 0:00:50.7]} 37... Kxg7 {[%clk 0:00:47.6]} 38. Rxd8 {[%clk 0:00:51.6]}
38... Rxa2 {[%clk 0:00:47.9]} 39. Bf3 {[%clk 0:00:49.5]} 39... Kf6 {[%clk
0:00:43.9]} 40. Kg2 {[%clk 0:00:46.2]} 40... Ke7 {[%clk 0:00:42.7]} 41. Rd3
{[%clk 0:00:45.4]} 41... Kf6 {[%clk 0:00:41.6]} 42. Bd5 {[%clk 0:00:39.4]} 42...
Rb2 {[%clk 0:00:41]} 43. Bf3 {[%clk 0:00:26.4]} 43... Ke5 {[%clk 0:00:38.4]} 44.
Rd5+ {[%clk 0:00:24.7]} 44... Ke6 {[%clk 0:00:36.9]} 45. Rd8 {[%clk 0:00:24.5]}
45... Ke7 {[%clk 0:00:36.5]} 46. Rd3 {[%clk 0:00:23.8]} 46... Kf6 {[%clk
0:00:34.8]} 47. Be2 {[%clk 0:00:23.7]} 47... Ke5 {[%clk 0:00:32.7]} 48. Kf3
{[%clk 0:00:23.4]} 48... h5 {[%clk 0:00:30.8]} 49. Ke3 {[%clk 0:00:20.6]} 49...
h4 {[%clk 0:00:19.7]} 50. Rxd2 {[%clk 0:00:19.7]} 50... Rb3+ {[%clk 0:00:18.4]}
51. Rd3 {[%clk 0:00:19.6]} 51... Rb2 {[%clk 0:00:18.7]} 52. Bf3 {[%clk
0:00:19.8]} 52... Rb1 {[%clk 0:00:18.2]} 53. Rd5+ {[%clk 0:00:20]} 53... Kf6
{[%clk 0:00:18.5]} 54. Rd6+ {[%clk 0:00:20.5]} 54... Kf7 {[%clk 0:00:15.7]} 55.
Bd5+ {[%clk 0:00:20.3]} 55... Kg7 {[%clk 0:00:14.4]} 56. Rxg6+ {[%clk 0:00:20]}
56... Kh7 {[%clk 0:00:13.8]} 57. Rxg5 {[%clk 0:00:20.1]} 57... Rd1 {[%clk
0:00:13.3]} 58. Rh5+ {[%clk 0:00:19.4]} 58... Kg6 {[%clk 0:00:13.5]} 59. Be4+
{[%clk 0:00:20]} 59... Kf6 {[%clk 0:00:13.3]} 60. Rh6+ {[%clk 0:00:19.5]} 60...
Kg7 {[%clk 0:00:12.8]} 61. Rxh4 {[%clk 0:00:19.4]} 61... Ra1 {[%clk 0:00:11.9]}
62. Kf4 {[%clk 0:00:18.4]} 62... Ra4 {[%clk 0:00:11.4]} 63. Rh7+ {[%clk
0:00:16.7]} 63... Kf6 {[%clk 0:00:11.1]} 64. Rh6+ {[%clk 0:00:16.8]} 64... Kg7
{[%clk 0:00:11.2]} 65. Rb6 {[%clk 0:00:16.8]} 65... Kf7 {[%clk 0:00:10.8]} 66.
f3 {[%clk 0:00:17.1]} 66... Kg7 {[%clk 0:00:11]} 67. h4 {[%clk 0:00:17.5]} 67...
Ra5 {[%clk 0:00:10.7]} 68. h5 {[%clk 0:00:17.6]} 68... Kf7 {[%clk 0:00:10.4]}
69. g5 {[%clk 0:00:17.5]} 69... Ke7 {[%clk 0:00:10.1]} 70. Rb7+ {[%clk 0:00:18]}
70... Kd6 {[%clk 0:00:10.1]} 71. h6 {[%clk 0:00:18.9]} 71... Ra1 {[%clk
0:00:09.3]} 72. h7 {[%clk 0:00:18.9]} 72... Rh1 {[%clk 0:00:09.4]} 73. Rb8
{[%clk 0:00:19.5]} 73... Kc7 {[%clk 0:00:09.5]} 74. h8=Q {[%clk 0:00:19.6]}
74... Rxh8 {[%clk 0:00:10.2]} 75. Rxh8 {[%clk 0:00:20.5]} 1-0

[Event "*** Titled Tuesday Blitz"]
[Site "Chess.com"]
[Date "2020.10.20"]
[Round "10"]
[White "barbara25"]
[Black "Barmen_EV"]
[Result "1-0"]
[WhiteElo "2318"]
[BlackElo "2513"]
[TimeControl "180+1"]
[EndTime "12:00:00 PDT"]
[Termination "barbara25 won by checkmate"]

1. e4 {[%clk 0:03:00.9]} 1... c5 {[%clk 0:02:59.9]} 2. Nf3 {[%clk 0:03:00.3]}
2... Nc6 {[%clk 0:03:00.4]} 3. Bb5 {[%clk 0:02:59.5]} 3... e6 {[%clk 0:02:59.9]}
4. O-O {[%clk 0:02:58.9]} 4... Nge7 {[%clk 0:02:59.8]} 5. Re1 {[%clk 0:02:59.1]}
5... Ng6 {[%clk 0:02:59.4]} 6. c3 {[%clk 0:02:58.5]} 6... d5 {[%clk 0:02:58.8]}
7. exd5 {[%clk 0:02:58]} 7... Qxd5 {[%clk 0:02:59.7]} 8. d4 {[%clk 0:02:57.6]}
8... cxd4 {[%clk 0:02:59.6]} 9. Bxc6+ {[%clk 0:02:57.4]} 9... bxc6 {[%clk
0:02:57.6]} 10. Nxd4 {[%clk 0:02:56]} 10... Be7 {[%clk 0:02:55.7]} 11. Nd2
{[%clk 0:02:55.6]} 11... O-O {[%clk 0:02:55.2]} 12. Qf3 {[%clk 0:02:55.5]} 12...
Bb7 {[%clk 0:02:49.7]} 13. b3 {[%clk 0:02:39.5]} 13... Qd7 {[%clk 0:02:40.3]}
14. Qe2 {[%clk 0:02:35.8]} 14... c5 {[%clk 0:02:39.4]} 15. N4f3 {[%clk
0:02:35.4]} 15... Bf6 {[%clk 0:02:39.3]} 16. Bb2 {[%clk 0:02:34.2]} 16... Rad8
{[%clk 0:02:38.4]} 17. Nc4 {[%clk 0:02:34.1]} 17... Nf4 {[%clk 0:02:37.2]} 18.
Qe3 {[%clk 0:02:26.4]} 18... Nd5 {[%clk 0:02:20.4]} 19. Qc1 {[%clk 0:02:13.2]}
19... Rfe8 {[%clk 0:02:14.1]} 20. Nce5 {[%clk 0:02:06.8]} 20... Qe7 {[%clk
0:02:13.8]} 21. c4 {[%clk 0:02:06.2]} 21... Nf4 {[%clk 0:02:11.1]} 22. Qxf4
{[%clk 0:02:01.9]} 22... h6 {[%clk 0:02:02.6]} 23. Qg3 {[%clk 0:01:58]} 23... g5
{[%clk 0:02:00.4]} 24. h4 {[%clk 0:01:53.1]} 24... Bg7 {[%clk 0:01:56.3]} 25.
hxg5 {[%clk 0:01:53.1]} 25... hxg5 {[%clk 0:01:57.2]} 26. Rab1 {[%clk
0:01:41.5]} 26... f6 {[%clk 0:01:55.4]} 27. Ng4 {[%clk 0:01:40.3]} 27... e5
{[%clk 0:01:55.5]} 28. Ne3 {[%clk 0:01:38.3]} 28... Qe6 {[%clk 0:01:49.7]} 29.
Qg4 {[%clk 0:01:30.2]} 29... Qf7 {[%clk 0:01:29.3]} 30. Nf5 {[%clk 0:01:29]}
30... Bc8 {[%clk 0:01:27.5]} 31. Rbd1 {[%clk 0:01:21.8]} 31... Qg6 {[%clk
0:01:11.3]} 32. Rxd8 {[%clk 0:01:18.2]} 32... Rxd8 {[%clk 0:01:08.7]} 33. Ne7+
{[%clk 0:01:17.3]} 33... Kh7 {[%clk 0:01:06.4]} 34. Nxc8 {[%clk 0:01:10.4]}
34... f5 {[%clk 0:00:54.8]} 35. Qh3+ {[%clk 0:01:07.4]} 35... Bh6 {[%clk
0:00:50.8]} 36. Ne7 {[%clk 0:00:56.5]} 36... g4 {[%clk 0:00:48.2]} 37. Nxg6
{[%clk 0:00:50.9]} 37... gxh3 {[%clk 0:00:49.1]} 38. Ngxe5 {[%clk 0:00:50.1]}
38... hxg2 {[%clk 0:00:49.9]} 39. Kxg2 {[%clk 0:00:45.2]} 39... Bf4 {[%clk
0:00:49.8]} 40. Nc6 {[%clk 0:00:41.3]} 40... Rg8+ {[%clk 0:00:47.8]} 41. Kf1
{[%clk 0:00:40.2]} 41... Rc8 {[%clk 0:00:47.6]} 42. Re7+ {[%clk 0:00:39.9]}
42... Kg6 {[%clk 0:00:47]} 43. Nce5+ {[%clk 0:00:39.7]} 43... Kh6 {[%clk
0:00:45.6]} 44. Nf7+ {[%clk 0:00:38.7]} 44... Kg6 {[%clk 0:00:44.1]} 45. Rxa7
{[%clk 0:00:38]} 45... Re8 {[%clk 0:00:41.6]} 46. N7e5+ {[%clk 0:00:37.3]} 46...
Kh6 {[%clk 0:00:40.1]} 47. Ra6+ {[%clk 0:00:37.4]} 47... Kh7 {[%clk 0:00:40.2]}
48. Rf6 {[%clk 0:00:37.1]} 48... Ra8 {[%clk 0:00:35.1]} 49. Rxf5 {[%clk
0:00:36]} 49... Rxa2 {[%clk 0:00:34.7]} 50. Rxf4 {[%clk 0:00:36.2]} 50... Rxb2
{[%clk 0:00:34.8]} 51. Nd7 {[%clk 0:00:35.3]} 51... Rxb3 {[%clk 0:00:34]} 52.
Nxc5 {[%clk 0:00:35.4]} 52... Rc3 {[%clk 0:00:33.5]} 53. Ne6 {[%clk 0:00:34.4]}
53... Kg6 {[%clk 0:00:32.9]} 54. c5 {[%clk 0:00:33.4]} 54... Rc1+ {[%clk
0:00:32.7]} 55. Kg2 {[%clk 0:00:33.2]} 55... Kh5 {[%clk 0:00:33.5]} 56. Rd4
{[%clk 0:00:29.9]} 56... Kg6 {[%clk 0:00:32.4]} 57. Nf4+ {[%clk 0:00:27.8]}
57... Kf5 {[%clk 0:00:33.3]} 58. Nd3 {[%clk 0:00:27.4]} 58... Rc3 {[%clk
0:00:32.4]} 59. Rd6 {[%clk 0:00:26.2]} 59... Kg4 {[%clk 0:00:23.5]} 60. c6
{[%clk 0:00:25.2]} 60... Kf5 {[%clk 0:00:23.5]} 61. Nd4+ {[%clk 0:00:24]} 61...
Ke4 {[%clk 0:00:22.9]} 62. Nb5 {[%clk 0:00:23.5]} 62... Rc2 {[%clk 0:00:17.3]}
63. c7 {[%clk 0:00:23.1]} 63... Kf5 {[%clk 0:00:17]} 64. Rd5+ {[%clk 0:00:22.2]}
64... Kg4 {[%clk 0:00:17.6]} 65. Rc5 {[%clk 0:00:22.1]} 65... Rxf2+ {[%clk
0:00:17.3]} 66. Kxf2 {[%clk 0:00:21]} 66... Kh4 {[%clk 0:00:18.2]} 67. Rc4+
{[%clk 0:00:21]} 67... Kg5 {[%clk 0:00:17.2]} 68. c8=Q {[%clk 0:00:20.6]} 68...
Kf6 {[%clk 0:00:18.1]} 69. Qc6+ {[%clk 0:00:20.5]} 69... Ke7 {[%clk 0:00:19]}
70. Re4+ {[%clk 0:00:20.6]} 70... Kf7 {[%clk 0:00:18.3]} 71. Qd7+ {[%clk
0:00:20.6]} 71... Kg6 {[%clk 0:00:18]} 72. Qe6+ {[%clk 0:00:20.7]} 72... Kh5
{[%clk 0:00:13.8]} 73. Qf5+ {[%clk 0:00:19.9]} 73... Kh6 {[%clk 0:00:14.7]} 74.
Re6+ {[%clk 0:00:20.1]} 74... Kg7 {[%clk 0:00:15.6]} 75. Qf6+ {[%clk 0:00:20.3]}
75... Kh7 {[%clk 0:00:15.7]} 76. Re7+ {[%clk 0:00:20.4]} 76... Kg8 {[%clk
0:00:01.4]} 77. Qg7# {[%clk 0:00:21.3]} 1-0

[Event "*** Titled Tuesday Blitz"]
[Site "Chess.com"]
[Date "2020.10.20"]
[Round "10"]
[White "Ajedrez_con_German"]
[Black "sopo-tereladze"]
[Result "0-1"]
[WhiteElo "2439"]
[BlackElo "2334"]
[TimeControl "180+1"]
[EndTime "12:00:03 PDT"]
[Termination "sopo-tereladze won on time"]

1. Nf3 {[%clk 0:03:00.9]} 1... Nf6 {[%clk 0:02:59.1]} 2. e3 {[%clk 0:03:01.2]}
2... d5 {[%clk 0:02:58.6]} 3. b3 {[%clk 0:03:01.4]} 3... Bf5 {[%clk 0:02:58.3]}
4. Bb2 {[%clk 0:03:02.3]} 4... e6 {[%clk 0:02:58.4]} 5. c4 {[%clk 0:03:03.2]}
5... Be7 {[%clk 0:02:58.1]} 6. cxd5 {[%clk 0:03:03.2]} 6... exd5 {[%clk
0:02:59]} 7. Be2 {[%clk 0:03:03.9]} 7... O-O {[%clk 0:02:58.8]} 8. O-O {[%clk
0:03:04.6]} 8... c6 {[%clk 0:02:58.6]} 9. d3 {[%clk 0:03:05.1]} 9... Nbd7 {[%clk
0:02:57.9]} 10. a3 {[%clk 0:03:05.7]} 10... Re8 {[%clk 0:02:57.5]} 11. Nbd2
{[%clk 0:03:06.1]} 11... Bg6 {[%clk 0:02:56.5]} 12. Re1 {[%clk 0:03:06.7]} 12...
Bd6 {[%clk 0:02:54.5]} 13. Bf1 {[%clk 0:03:06.8]} 13... Ne5 {[%clk 0:02:54.8]}
14. Nxe5 {[%clk 0:03:06.5]} 14... Bxe5 {[%clk 0:02:55.7]} 15. Bxe5 {[%clk
0:03:07.1]} 15... Rxe5 {[%clk 0:02:56.6]} 16. Nf3 {[%clk 0:03:07.4]} 16... Re8
{[%clk 0:02:55.8]} 17. b4 {[%clk 0:03:08]} 17... Qd6 {[%clk 0:02:52.9]} 18. Qb3
{[%clk 0:03:07.8]} 18... Ng4 {[%clk 0:02:46.2]} 19. h3 {[%clk 0:03:03.5]} 19...
Ne5 {[%clk 0:02:45.8]} 20. Nxe5 {[%clk 0:03:03.8]} 20... Rxe5 {[%clk 0:02:46.6]}
21. Rac1 {[%clk 0:03:00.1]} 21... Rae8 {[%clk 0:02:44.9]} 22. d4 {[%clk
0:02:56.4]} 22... Rg5 {[%clk 0:02:40]} 23. b5 {[%clk 0:02:56]} 23... Be4 {[%clk
0:02:37]} 24. f4 {[%clk 0:02:17.2]} 24... Rg3 {[%clk 0:02:23]} 25. bxc6 {[%clk
0:02:15.5]} 25... bxc6 {[%clk 0:02:22.5]} 26. Qb7 {[%clk 0:02:05.8]} 26... Qg6
{[%clk 0:02:17.1]} 27. Re2 {[%clk 0:02:02]} 27... h5 {[%clk 0:02:14.2]} 28. Rxc6
{[%clk 0:01:57.5]} 28... Qf5 {[%clk 0:02:00]} 29. Kf2 {[%clk 0:01:35.1]} 29...
h4 {[%clk 0:01:45.4]} 30. Qb3 {[%clk 0:01:23.2]} 30... Bd3 {[%clk 0:01:37.8]}
31. Re1 {[%clk 0:01:12.1]} 31... Bxf1 {[%clk 0:00:54]} 32. Kxf1 {[%clk
0:01:10.1]} 32... g5 {[%clk 0:00:46.2]} 33. Qc2 {[%clk 0:00:57]} 33... Re4
{[%clk 0:00:43.8]} 34. Re2 {[%clk 0:00:23.8]} 34... gxf4 {[%clk 0:00:42.3]} 35.
exf4 {[%clk 0:00:24.1]} 35... Qxf4+ {[%clk 0:00:32.7]} 36. Rf2 {[%clk
0:00:24.6]} 36... Qe3 {[%clk 0:00:31.7]} 37. Qd2 {[%clk 0:00:19.8]} 37... Rxd4
{[%clk 0:00:21.1]} 38. Rc8+ {[%clk 0:00:16.5]} 38... Kg7 {[%clk 0:00:19.1]} 39.
Qxe3 {[%clk 0:00:15.5]} 39... Rxe3 {[%clk 0:00:20]} 40. Re2 {[%clk 0:00:16]}
40... Rxe2 {[%clk 0:00:19.2]} 41. Kxe2 {[%clk 0:00:16.9]} 41... Ra4 {[%clk
0:00:18.3]} 42. Rd8 {[%clk 0:00:14.6]} 42... d4 {[%clk 0:00:12.8]} 43. Rd7
{[%clk 0:00:14.2]} 43... Kf6 {[%clk 0:00:12.3]} 44. Kf2 {[%clk 0:00:14.4]} 44...
Ke6 {[%clk 0:00:11.6]} 45. Rd8 {[%clk 0:00:14.6]} 45... Ke5 {[%clk 0:00:10.9]}
46. Rh8 {[%clk 0:00:13.3]} 46... Rxa3 {[%clk 0:00:10.3]} 47. Rxh4 {[%clk
0:00:13.4]} 47... Ra2+ {[%clk 0:00:10.6]} 48. Kf3 {[%clk 0:00:12.6]} 48... Ra3+
{[%clk 0:00:10.4]} 49. Kf2 {[%clk 0:00:12.5]} 49... f5 {[%clk 0:00:11.3]} 50.
Rh8 {[%clk 0:00:12]} 50... Ra2+ {[%clk 0:00:10.5]} 51. Kf3 {[%clk 0:00:11.8]}
51... Ra3+ {[%clk 0:00:11.4]} 52. Kf2 {[%clk 0:00:11.8]} 52... Ke4 {[%clk
0:00:11.7]} 53. Re8+ {[%clk 0:00:08.7]} 53... Kf4 {[%clk 0:00:09.5]} 54. Rd8
{[%clk 0:00:06.8]} 54... Ra2+ {[%clk 0:00:09.3]} 55. Kf1 {[%clk 0:00:05.6]}
55... Ke3 {[%clk 0:00:10.2]} 56. Re8+ {[%clk 0:00:04.9]} 56... Kd3 {[%clk
0:00:09.8]} 57. Rf8 {[%clk 0:00:04.3]} 57... Ra1+ {[%clk 0:00:08.6]} 58. Kf2
{[%clk 0:00:04.2]} 58... Ra2+ {[%clk 0:00:09.5]} 59. Kf3 {[%clk 0:00:04.3]}
59... Kc2 {[%clk 0:00:08.3]} 60. Rc8+ {[%clk 0:00:04.1]} 60... Kd2 {[%clk
0:00:06.4]} 61. Kf4 {[%clk 0:00:04.4]} 61... d3 {[%clk 0:00:06.6]} 62. Kxf5
{[%clk 0:00:04.8]} 62... Ke2 {[%clk 0:00:06.6]} 63. g4 {[%clk 0:00:02.4]} 63...
d2 {[%clk 0:00:05.4]} 64. Re8+ {[%clk 0:00:02.4]} 64... Kf2 {[%clk 0:00:05.1]}
65. Rd8 {[%clk 0:00:02.7]} 65... Ke2 {[%clk 0:00:04.8]} 66. Re8+ {[%clk
0:00:03]} 66... Kf3 {[%clk 0:00:04.6]} 67. Rd8 {[%clk 0:00:03.4]} 67... Ra5+
{[%clk 0:00:04.7]} 68. Kf6 {[%clk 0:00:03.6]} 68... Ke3 {[%clk 0:00:04.9]} 69.
g5 {[%clk 0:00:03.8]} 69... Ra4 {[%clk 0:00:04.6]} 70. g6 {[%clk 0:00:03.9]}
70... Rf4+ {[%clk 0:00:05.5]} 71. Kg5 {[%clk 0:00:03.9]} 71... Rd4 {[%clk
0:00:04.7]} 72. Rxd4 {[%clk 0:00:04.2]} 72... Kxd4 {[%clk 0:00:05.6]} 73. g7
{[%clk 0:00:05.1]} 73... d1=Q {[%clk 0:00:06.1]} 74. g8=Q {[%clk 0:00:06]} 74...
Qg1+ {[%clk 0:00:06]} 0-1